bitfinex/quotes_ETHUSD_20250319
["timestamp","ask_amount","ask_price","bid_price","bid_amount"]
[1742382814812,17.324,1997.0,1996.3,0.7526]
[1742382815495,17.324,1997.0,1996.9,35.0]
[1742382818033,23.677,1997.0,1996.9,35.0]
[1742382819328,23.658,1997.0,1996.9,35.0]
[1742382820842,17.324,1997.0,1996.9,38.5]
[1742382821208,6.344,1997.3,1996.9,38.5]
[1742382821513,6.344,1997.3,1996.9,3.5]
[1742382821717,2.54931817,1998.1,1996.8,0.7528]
[1742382821718,0.7672,1998.1,1996.8,0.7528]
[1742382821927,17.315,1997.8,1997.5,35.0]
[1742382823531,17.315,1997.8,1997.3,0.7528]
[1742382823701,23.628,1997.8,1997.3,0.7528]
[1742382824107,23.628,1997.8,1997.7,35.0]
[1742382824308,23.628,1997.8,1997.7,38.5]
[1742382824510,17.315,1997.8,1997.7,38.5]
[1742382824832,24.172,1997.8,1997.7,35.0]
[1742382825226,28.08349556,1997.8,1997.7,35.0]
[1742382825424,28.90009556,1997.8,1997.7,35.0]
[1742382826439,0.55,1997.7,1996.9,0.99472236]
[1742382827327,0.55,1997.7,1997.0,35.0]
[1742382827514,3.44000956,1997.7,1997.0,35.0]
[1742382829107,18.1316,1997.8,1996.9,3.0]
[1742382829306,17.315,1997.8,1997.0,0.7557]
[1742382829540,6.272,1997.7,1997.0,0.7557]
[1742382829744,6.272,1997.7,1997.1,3.0]
[1742382829948,6.272,1997.7,1997.6,35.0]
[1742382830152,6.272,1997.7,1997.6,39.2766]
[1742382831347,17.315,1997.8,1997.6,39.2766]
[1742382831551,17.315,1997.8,1997.6,4.2766]
[1742382831713,17.315,1997.8,1997.6,0.7766]
[1742382831916,17.315,1997.8,1997.7,35.0]
[1742382834460,17.315,1997.8,1997.7,38.8086]
[1742382835130,6.232,1998.1,1997.8,3.0]
[1742382835552,17.307,1998.4,1997.8,3.0]
[1742382835855,6.232,1998.2,1997.7,0.8086]
[1742382836055,0.8325,1998.1,1997.5,1.00786548]
[1742382836454,6.232,1998.2,1997.5,1.00786548]
[1742382838492,6.232,1998.2,1997.4,0.7846]
[1742382838796,18.1395,1998.4,1997.4,0.7846]
[1742382838963,6.231,1998.3,1997.9,0.7505]
[1742382840346,17.307,1998.4,1997.9,0.7505]
[1742382840551,6.231,1998.3,1997.8,1.00183071]
[1742382841797,17.307,1998.4,1997.8,1.00183071]
[1742382842006,6.231,1998.3,1997.8,1.00183071]
[1742382843095,4.55774109,1998.2,1997.6,0.7822]
[1742382843310,0.45577411,1998.1,1997.6,0.7822]
[1742382843492,0.7965,1998.2,1997.6,0.7822]
[1742382843811,4.55774109,1998.2,1997.6,0.7822]
[1742382844012,4.55774109,1998.2,1997.5,1.01095924]
[1742382844624,0.55,1998.1,1997.5,1.01095924]
[1742382844778,3.76124109,1997.8,1997.3,0.824]
[1742382844978,6.23,1997.7,1997.3,0.824]
[1742382845290,6.23,1997.9,1997.4,1.05189346]
[1742382845679,6.23,1997.9,1997.4,1.00183071]
[1742382847422,6.23,1997.9,1997.5,0.7825]
[1742382848524,6.23,1997.9,1997.5,1.16075]
[1742382848698,6.23,1997.9,1997.5,0.7825]
[1742382850237,6.23,1997.9,1997.6,1.0052756]
[1742382850826,3.76124109,1998.3,1997.6,1.0052756]
[1742382851023,6.23,1998.2,1997.6,1.0052756]
[1742382851244,17.307,1998.4,1997.7,0.05005004]
[1742382851430,17.307,1998.4,1997.8,3.7912]
[1742382851600,0.1192386,1999.4,1997.6,1.0052756]
[1742382851601,6.23,1998.9,1998.2,3.0]
[1742382851797,6.23,1998.9,1998.3,0.7912]
[1742382852102,6.23,1998.9,1998.4,0.7912]
[1742382852300,17.304,1999.1,1998.4,0.7912]
[1742382852697,23.534,1999.1,1998.4,0.7912]
[1742382853723,23.534,1999.1,1998.5,3.0]
[1742382854053,17.304,1999.1,1998.7,3.8294]
[1742382854234,6.3482386,1999.4,1998.8,0.8294]
[1742382854603,6.3482386,1999.4,1998.8,4.59064109]
[1742382854800,6.3482386,1999.4,1998.8,0.8294]
[1742382855003,3.76124109,1999.1,1998.5,0.7602]
[1742382855207,6.229,1999.0,1998.5,1.77386085]
[1742382855547,6.229,1998.9,1998.5,1.77386085]
[1742382855961,0.1192386,1999.4,1998.5,1.77386085]
[1742382856138,6.228,1999.3,1998.5,1.77386085]
[1742382856336,6.228,1999.3,1998.7,3.0]
[1742382856644,6.228,1999.3,1998.9,0.7769]
[1742382857057,10.77264109,1999.3,1998.6,0.7769]
[1742382857464,3.76124109,1999.1,1998.6,0.7769]
[1742382857663,0.55,1999.2,1998.6,0.7769]
[1742382857972,3.76124109,1999.1,1998.1,0.7769]
[1742382858174,0.1192386,1999.4,1998.9,3.76124109]
[1742382858382,101.05079359,2000.0,1998.9,3.76124109]
[1742382858383,99.92696002,2000.0,1999.4,3.6332]
[1742382858560,98.94971344,2000.0,1999.9,7.39444109]
[1742382858735,79.44502058,2000.0,1999.9,3.6332]
[1742382858935,79.44502058,2000.0,1999.9,4.65628559]
[1742382859248,63.49133926,2000.0,1999.9,5.49803826]
[1742382859450,2.55612807,2002.2,1999.9,5.49803826]
[1742382859451,3.0,2003.6,2000.2,0.1]
[1742382859760,30.67,2004.4,2000.2,0.1]
[1742382859761,2.44134337,2007.3,2003.5,15.04915352]
[1742382859973,2.43586239,2006.7,2004.2,100.1]
[1742382860172,2.42799923,2007.3,2005.9,0.1]
[1742382860334,0.1192386,2007.4,2006.0,2.35424811]
[1742382860672,0.1192386,2007.4,2006.9,0.1]
[1742382860886,0.1192386,2007.4,2006.1,9.86076709]
[1742382860887,17.398,2009.7,2006.1,9.86076709]
[1742382860888,16.46,2012.6,2006.7,0.1]
[1742382861078,16.46,2012.6,2006.1,2.07702314]
[1742382861079,0.1272743,2010.3,2009.3,0.09990029]
[1742382861253,1.497294,2011.9,2010.2,15.04915352]
[1742382861453,0.03944389,2012.5,2012.4,3.76124109]
[1742382861640,12.55241538,2015.0,2014.2,3.0]
[1742382861846,3.1272743,2018.8,2012.4,12.54417872]
[1742382861847,0.1205428,2018.8,2014.9,3.72361299]
[1742382862047,2.61552603,2020.0,2014.4,0.09990029]
[1742382862048,0.14985,2020.0,2016.5,0.09990029]
[1742382862237,0.0140634,2020.3,2020.2,0.09990029]
[1742382862441,0.09990029,2020.2,2018.0,3.72361299]
[1742382862637,0.0140634,2020.3,2020.1,7.44722598]
[1742382862951,0.005,2024.0,2021.0,0.09990029]
[1742382863152,2.49411937,2023.8,2021.1,0.09990029]
[1742382863360,0.47450412,2022.5,2019.9,3.0]
[1742382863561,0.1,2022.0,2017.7,10.22]
[1742382863774,0.3825724,2022.7,2018.5,0.09990029]
[1742382863972,0.3825724,2022.7,2018.6,10.31058612]
[1742382863973,0.1,2021.1,2018.6,10.31058612]
[1742382864147,0.1,2021.1,2018.7,9.30368844]
[1742382864350,1.0310058,2022.2,2018.8,9.21310681]
[1742382864553,0.2001058,2022.2,2017.9,9.21310681]
[1742382864757,0.1,2020.3,2018.1,3.0]
[1742382865077,0.7534,2022.1,2018.8,0.09990029]
[1742382865276,0.09229638,2020.2,2018.9,0.09990029]
[1742382865458,0.8953995,2022.2,2019.4,0.09990029]
[1742382865787,0.8953995,2022.2,2016.5,5.10742933]
[1742382865788,0.1,2020.5,2016.5,5.10742933]
[1742382865985,18.0461,2020.4,2015.2,0.47867308]
[1742382866295,1.91151,2020.3,2013.8,17.218]
[1742382866598,0.1,2018.6,2013.9,27.52879752]
[1742382866745,0.1,2018.4,2016.1,3.0]
[1742382866945,0.09229638,2018.3,2012.8,35.0]
[1742382867193,0.1,2018.0,2012.9,7.09]
[1742382867395,0.1,2018.0,2012.1,17.218]
[1742382867396,0.09229638,2017.9,2011.3,2.46082114]
[1742382867697,0.1,2016.6,2013.9,3.0]
[1742382867875,0.1,2015.9,2012.2,17.19]
[1742382868074,0.09229638,2015.8,2012.0,34.18562303]
[1742382868289,0.1,2015.7,2012.3,3.0]
[1742382868593,24.36229638,2015.6,2013.3,0.97793631]
[1742382868769,0.1,2015.0,2012.0,19.0]
[1742382869077,0.09229638,2014.9,2012.5,1.492035]
[1742382869285,0.1,2013.3,2012.5,1.492035]
[1742382869599,0.1,2012.2,2009.2,3.0492]
[1742382869758,0.19229638,2012.1,2010.6,35.0]
[1742382869951,0.1,2011.7,2010.6,35.0]
[1742382870182,0.1,2012.6,2010.5,1.493461]
[1742382870347,0.1,2012.7,2010.5,1.493461]
[1742382870548,0.1,2012.6,2011.1,35.0]
[1742382870773,17.284,2013.0,2011.1,35.0]
[1742382870986,0.1,2012.2,2009.9,1.493911]
[1742382871291,18.9124,2013.0,2009.6,3.0]
[1742382871292,0.1,2012.4,2009.8,16.0]
[1742382871457,7.08,2012.8,2012.3,35.0]
[1742382871458,0.1,2012.7,2012.3,35.0]
[1742382871658,13.79930479,2013.0,2012.3,35.0]
[1742382871889,7.08,2012.9,2009.9,20.284]
[1742382872054,13.79930479,2013.0,2010.3,19.0]
[1742382872260,15.17923527,2013.0,2010.3,16.0]
[1742382872455,7.08,2013.6,2012.9,35.0]
[1742382872692,8.0,2014.1,2012.9,35.0]
[1742382872693,7.08,2014.0,2012.9,35.0]
[1742382872901,7.08,2013.9,2010.5,3.1]
[1742382873204,3.39,2013.8,2010.5,17.184]
[1742382873380,4.733,2013.7,2010.4,16.0]
[1742382873590,4.733,2013.7,2009.2,0.0492]
[1742382873591,0.1,2013.2,2009.2,0.0492]
[1742382873755,0.1,2013.0,2012.4,35.0]
[1742382873960,0.00213933,2011.3,2009.5,3.0]
[1742382874185,17.18,2011.2,2009.4,100.0]
[1742382874393,0.02045095,2011.3,2009.4,100.0]
[1742382874895,0.02045095,2011.3,2011.2,35.0]
[1742382875097,0.00213933,2011.3,2011.2,35.0]
[1742382875593,17.18,2011.6,2011.2,35.76135683]
[1742382875759,17.18,2011.6,2011.2,0.76135683]
[1742382876196,17.18,2012.8,2011.5,35.0]
[1742382876410,17.182,2012.8,2011.5,35.0]
[1742382876706,3.17189099,2012.7,2011.2,0.76135683]
[1742382876858,5.91106344,2012.7,2011.2,0.76135683]
[1742382877063,3.55,2012.2,2011.2,0.76135683]
[1742382877299,0.55,2012.0,2011.2,0.76135683]
[1742382877501,0.55,2011.8,2011.2,0.76135683]
[1742382877662,3.55,2011.6,2011.2,0.76135683]
[1742382877863,1.32,2011.5,2011.2,0.76135683]
[1742382878080,1.87,2011.5,2011.4,35.0]
[1742382878263,0.55864317,2011.1,2009.3,100.0]
[1742382878472,0.55,2011.5,2009.3,100.0]
[1742382878875,0.56,2011.5,2009.3,100.0]
[1742382879101,2.3342,2011.5,2009.3,100.0]
[1742382879305,17.182,2011.7,2011.4,35.0]
[1742382879616,0.56,2011.6,2009.4,3.0]
[1742382879975,17.182,2011.7,2009.5,0.55]
[1742382880171,17.182,2011.7,2011.6,35.0]
[1742382880370,17.182,2011.7,2009.3,100.0]
[1742382880371,19.4602,2011.7,2009.3,100.0]
[1742382880692,0.55,2011.5,2009.2,0.0492]
[1742382881099,1.87891519,2010.7,2009.2,0.0492]
[1742382881433,0.55,2010.5,2009.2,0.0492]
[1742382881600,17.186,2010.6,2009.2,0.0492]
[1742382882018,2.5186,2010.6,2010.5,35.0]
[1742382882331,17.189,2011.1,2009.2,0.0492]
[1742382883238,0.55,2010.9,2009.2,0.0492]
[1742382883640,5.74619273,2011.0,2010.8,35.0]
[1742382883807,5.74619273,2011.0,2009.2,0.0492]
[1742382884337,17.189,2011.1,2009.2,0.0492]
[1742382884530,15.00790084,2011.1,2009.4,0.8121]
[1742382884709,15.00790084,2011.1,2011.0,35.0]
[1742382885044,8.0,2011.3,2011.0,35.0]
[1742382885187,8.0,2012.4,2010.8,0.55]
[1742382885591,8.0,2012.4,2010.7,3.8121]
[1742382885814,8.0,2012.4,2012.3,35.0]
[1742382886034,15.63374115,2012.8,2012.3,35.0]
[1742382886233,15.63374115,2012.8,2010.8,0.55]
[1742382886396,15.63374115,2012.8,2012.3,0.79379923]
[1742382886791,15.63374115,2012.8,2012.7,35.0]
[1742382887229,18.08028527,2012.8,2012.3,0.79379923]
[1742382887541,15.63374115,2012.8,2012.4,0.79379923]
[1742382888036,3.0,2012.7,2012.4,0.79379923]
[1742382888538,0.55,2012.4,2010.8,0.8327]
[1742382888688,0.55,2012.4,2010.1,0.7912]
[1742382888890,0.7702,2012.0,2010.1,0.7912]
[1742382889142,5.30351648,2011.2,2010.1,0.7912]
[1742382889295,17.82569243,2011.1,2010.1,0.7912]
[1742382889492,0.08869243,2011.0,2010.1,0.7912]
[1742382890497,0.08869243,2011.0,2009.4,0.759]
[1742382890694,0.08869243,2011.0,2010.9,35.0]
[1742382891504,0.7603,2012.6,2010.9,35.0]
[1742382891705,0.7603,2012.6,2010.3,22.49251648]
[1742382891706,0.7603,2013.5,2011.4,0.8125]
[1742382892127,0.09229638,2013.1,2011.4,0.8125]
[1742382892324,0.09229638,2013.1,2010.9,0.55]
[1742382892325,5.30351648,2012.6,2010.3,0.8125]
[1742382892635,3.7603,2012.4,2010.3,0.8125]
[1742382893129,0.55,2012.2,2010.3,0.8125]
[1742382893451,0.55,2012.0,2010.3,0.8125]
[1742382893656,0.09224285,2011.9,2010.3,0.8125]
[1742382894222,0.09224285,2011.9,2011.8,35.0]
[1742382896768,0.09224285,2011.9,2011.8,35.85686919]
[1742382897063,8.0,2012.8,2011.9,0.7849]
[1742382897277,0.89749638,2012.7,2011.8,0.85686919]
[1742382897428,0.09229638,2012.6,2011.8,0.85686919]
[1742382897630,17.187,2012.5,2011.8,0.85686919]
[1742382897850,3.09227836,2012.4,2011.8,0.85686919]
[1742382898156,0.55,2012.2,2012.0,0.85686919]
[1742382898463,0.09226052,2012.1,2012.0,0.85686919]
[1742382898821,0.09226052,2012.1,2010.9,0.88190229]
[1742382899057,0.005,2013.2,2012.0,35.0]
[1742382899257,0.005,2013.2,2012.1,9.11219319]
[1742382899572,0.005,2013.2,2012.3,0.759]
[1742382899925,0.8052,2014.0,2013.1,35.0]
[1742382900152,1.493654,2016.4,2013.3,3.55]
[1742382900460,0.8038,2017.7,2016.3,0.7936]
[1742382900663,0.8038,2018.8,2016.3,0.7936]
[1742382900865,17.181,2019.1,2018.7,35.0]
[1742382901169,0.8038,2019.4,2016.7,0.7936]
[1742382901477,0.8038,2019.4,2016.8,0.04953769]
[1742382901678,0.8051,2018.8,2016.7,0.7936]
[1742382901968,0.8051,2018.8,2014.8,3.0]
[1742382901969,0.8051,2017.9,2016.1,0.76]
[1742382902254,0.8051,2017.3,2016.9,0.86233004]
[1742382902423,3.0,2017.1,2015.5,0.76]
[1742382902627,0.63872812,2017.1,2016.3,0.86226201]
[1742382902851,0.63872812,2017.1,2014.5,0.55]
[1742382902852,0.08872812,2017.1,2015.1,0.76]
[1742382903029,0.8051,2017.1,2013.5,0.76]
[1742382903356,0.8051,2016.5,2015.1,35.0]
[1742382903582,0.55,2016.3,2015.1,35.0]
[1742382903859,0.36947116,2017.5,2015.2,0.04961281]
[1742382904079,0.8051,2015.7,2011.5,16.0]
[1742382904255,17.80861297,2015.6,2012.4,35.0]
[1742382904463,0.08312245,2015.2,2012.6,7.01583306]
[1742382904684,0.08312245,2015.2,2012.7,0.04962125]
[1742382904869,0.8051,2016.3,2013.3,7.01583306]
[1742382905176,0.8051,2016.3,2015.5,35.0]
[1742382905527,17.172,2016.6,2014.3,0.55]
[1742382905729,18.8892,2016.6,2014.3,0.5995966]
[1742382905932,0.8051,2016.9,2016.5,35.0]
[1742382906128,3.784,2187.8,2016.5,35.0]
[1742382906129,0.04961297,2016.8,2016.5,35.0]
[1742382906372,17.165,2017.2,2014.8,3.55]
[1742382906584,0.7947,2018.0,2015.4,7.01583306]
[1742382906881,2.43242679,2018.6,2017.9,35.0]
[1742382906882,0.7947,2018.6,2017.9,35.0]
[1742382907232,0.7947,2018.6,2015.5,17.165]
[1742382907233,0.04961297,2018.5,2016.3,0.7818]
[1742382907435,0.13834109,2018.5,2016.3,0.7818]
[1742382907838,0.08872812,2018.4,2017.8,35.0]
[1742382908067,0.13834109,2018.4,2017.8,35.0]
[1742382908267,0.13834109,2018.4,2016.3,0.7818]
[1742382908471,0.08872812,2018.4,2016.4,0.04956411]
[1742382908675,0.00516423,2018.9,2016.5,0.7536]
[1742382908982,0.00516423,2018.9,2016.9,0.55]
[1742382909290,0.00516423,2018.9,2018.5,35.0]
[1742382911480,0.00516423,2018.9,2017.9,0.7964]
[1742382911688,0.00516423,2018.9,2018.0,0.04951753]
[1742382911843,0.00516423,2018.9,2018.1,0.55]
[1742382912044,0.00516423,2018.9,2018.8,39.3116]
[1742382912244,0.00516423,2018.9,2018.8,38.7616]
[1742382912450,0.00516423,2018.9,2018.8,35.7616]
[1742382912669,0.00516423,2018.9,2018.8,35.0]
[1742382912871,0.00516423,2018.9,2018.0,0.8179]
[1742382913083,0.00516423,2018.9,2017.6,0.8179]
[1742382913289,0.00516423,2018.9,2017.7,35.0]
[1742382913457,0.0547772,2018.9,2017.7,35.0]
[1742382913784,0.04961297,2018.9,2017.6,0.8179]
[1742382913984,0.7847,2020.1,2017.6,0.8179]
[1742382914183,0.7847,2019.9,2017.6,0.8179]
[1742382914352,0.55,2019.4,2017.7,35.0]
[1742382914553,0.55,2019.1,2016.4,0.8315]
[1742382914795,0.7847,2018.7,2016.4,0.8315]
[1742382914945,0.7847,2018.4,2016.4,0.8315]
[1742382915149,0.55,2018.2,2016.5,35.0]
[1742382915385,3.91468355,2018.2,2016.5,35.0]
[1742382915560,0.08872812,2018.2,2016.6,0.04956753]
[1742382915759,0.7824,2018.1,2015.6,0.04956802]
[1742382915975,0.805,2017.9,2016.1,35.0]
[1742382916315,0.805,2017.0,2014.6,4.33735642]
[1742382916479,0.7668,2016.0,2014.7,0.43373564]
[1742382916680,17.141,2015.9,2014.6,4.33735642]
[1742382917083,3.08872812,2015.8,2013.5,0.7505]
[1742382917310,0.08872812,2015.7,2015.4,35.0]
[1742382917507,0.55,2015.6,2015.4,35.0]
[1742382917713,0.08872812,2015.5,2015.4,35.0]
[1742382917967,0.55,2015.3,2013.5,0.7505]
[1742382918197,0.7797,2015.4,2013.6,0.50878564]
[1742382918565,0.55,2015.3,2013.6,0.50878564]
[1742382918775,0.7797,2015.4,2013.6,0.50878564]
[1742382918964,0.7797,2015.4,2014.8,35.0]
[1742382919468,0.7797,2015.4,2013.6,0.50878564]
[1742382919713,0.7797,2015.4,2013.5,0.7505]
[1742382919872,0.7797,2015.4,2015.3,35.0]
[1742382920320,17.923,2015.9,2015.3,35.0]
[1742382920513,17.923,2015.9,2013.7,3.55]
[1742382920717,17.141,2015.9,2013.9,0.55]
[1742382920889,17.141,2015.9,2013.7,3.0]
[1742382920890,17.141,2015.9,2014.3,0.55]
[1742382921212,17.9246,2017.2,2015.8,35.0]
[1742382921416,1.79429116,2017.1,2015.4,0.7924]
[1742382921713,17.9246,2017.2,2015.6,0.55]
[1742382922011,17.9246,2017.2,2017.1,35.0]
[1742382923171,17.148,2017.2,2017.1,35.0]
[1742382924020,0.7806,2017.8,2017.1,35.0]
[1742382924324,0.0110852,2017.4,2016.5,0.55]
[1742382924670,0.0110852,2017.4,2017.2,35.0]
[1742382925020,0.0110852,2017.4,2017.3,3.0]
[1742382925172,0.0110852,2017.4,2017.3,3.803]
[1742382925372,0.0110852,2017.4,2017.3,0.803]
[1742382925676,0.0110852,2017.4,2016.9,0.04955441]
[1742382925910,0.0110852,2017.4,2017.3,35.0]
[1742382927374,3.5610852,2017.4,2017.3,35.0]
[1742382927769,3.5610852,2017.4,2014.8,6.99400841]
[1742382927770,0.55,2017.2,2015.4,0.7699]
[1742382927969,1.3118,2017.0,2015.0,0.7654]
[1742382928184,0.08872812,2016.9,2015.0,0.7654]
[1742382928410,0.55,2016.8,2015.0,0.81500359]
[1742382928612,17.141,2016.7,2015.0,0.81500359]
[1742382928923,3.55,2016.6,2016.0,35.0]
[1742382929276,0.55,2016.4,2016.0,35.0]
[1742382929582,0.55,2016.2,2013.8,0.66551307]
[1742382929785,0.86532812,2016.1,2012.4,17.141]
[1742382929975,0.55,2015.9,2012.8,0.98202973]
[1742382930171,0.55,2015.5,2012.9,0.04964784]
[1742382930472,0.55,2015.3,2012.9,0.04964784]
[1742382930672,0.55,2015.3,2015.0,30.1668]
[1742382930901,0.6779,2015.2,2012.8,0.98202973]
[1742382931132,0.55,2015.1,2012.5,0.04964015]
[1742382931334,0.55,2014.7,2012.4,0.04965352]
[1742382931544,0.55,2014.4,2012.5,0.04966784]
[1742382931719,17.144,2014.6,2011.9,0.97815447]
[1742382931720,17.144,2014.6,2013.9,35.0]
[1742382931911,0.55,2014.5,2013.9,35.0]
[1742382932114,3.55,2014.5,2013.9,35.0]
[1742382932996,3.55,2014.5,2013.9,34.3221]
[1742382933352,2.27015,2013.9,2011.4,0.7839]
[1742382933512,17.23972812,2014.4,2011.5,0.04967544]
[1742382933712,0.55,2014.2,2011.5,0.04966938]
[1742382933901,0.55,2014.0,2011.4,0.7839]
[1742382934248,0.08872812,2013.9,2011.5,0.0496791]
[1742382934609,0.55,2013.8,2011.5,0.0496791]
[1742382934841,0.55,2013.8,2011.4,0.7839]
[1742382934842,0.08872812,2013.7,2011.4,0.7839]
[1742382934999,3.0,2013.5,2011.4,0.7839]
[1742382935200,3.55,2013.3,2011.4,0.7839]
[1742382935432,0.55,2013.1,2011.4,0.7839]
[1742382935635,0.55,2012.9,2011.4,0.7839]
[1742382935822,0.55,2012.6,2010.7,0.7674]
[1742382935998,0.08872812,2012.5,2010.7,0.7674]
[1742382936201,0.55,2012.4,2010.7,0.81711103]
[1742382936426,0.55,2012.4,2010.7,0.7674]
[1742382937129,0.08872812,2012.5,2010.8,0.04970783]
[1742382937296,17.151,2012.8,2010.9,0.04969892]
[1742382937502,17.151,2012.8,2010.7,1.75775427]
[1742382937696,0.55,2012.7,2010.8,0.04969871]
[1742382937926,17.151,2012.8,2010.7,1.75775427]
[1742382938150,0.55,2012.6,2010.7,1.75775427]
[1742382938429,0.55,2012.4,2010.7,1.75775427]
[1742382938630,0.08872812,2012.5,2010.7,1.75775427]
[1742382938819,2.44716381,2013.4,2010.9,3.8157]
[1742382939132,3.0,2013.3,2011.0,0.04968642]
[1742382939426,0.08872812,2013.2,2010.9,3.8157]
[1742382940226,0.08872812,2013.2,2011.0,0.04969358]
[1742382940530,0.08872812,2013.2,2011.0,0.55]
[1742382940709,0.08872812,2013.2,2010.9,0.8157]
[1742382940913,0.55,2013.1,2010.9,0.8157]
[1742382941115,3.55,2013.1,2010.9,0.8157]
[1742382941435,0.55,2012.9,2010.9,0.8157]
[1742382942002,3.55,2012.6,2010.9,0.8157]
[1742382942332,3.55,2012.4,2010.9,0.8157]
[1742382942536,0.08872812,2012.3,2010.9,0.8157]
[1742382942725,0.55,2012.2,2011.0,0.0497183]
[1742382942924,0.08872812,2012.3,2010.9,0.8157]
[1742382943811,17.172,2012.5,2011.0,0.04970595]
[1742382944135,17.172,2012.5,2011.0,0.43624655]
[1742382944333,17.172,2012.5,2011.0,3.43624655]
[1742382944518,17.172,2012.5,2011.0,0.43624655]
[1742382944713,17.172,2012.5,2011.0,0.3865406]
[1742382945760,0.55,2012.4,2011.0,0.3865406]
[1742382945906,17.172,2012.5,2011.0,0.3865406]
[1742382946114,0.55,2012.4,2010.9,0.8157]
[1742382946651,3.0,2012.4,2010.9,0.8157]
[1742382946812,17.172,2012.5,2010.9,0.8157]
[1742382947134,0.55,2012.4,2010.9,0.8157]
[1742382947665,17.172,2012.5,2010.9,0.8157]
[1742382947811,17.172,2012.5,2010.9,3.8157]
[1742382948745,0.55,2012.4,2010.9,3.8157]
[1742382948911,0.55,2012.4,2010.9,0.8157]
[1742382950445,0.55,2012.2,2010.9,0.8157]
[1742382950618,0.63872812,2012.2,2010.9,0.8157]
[1742382952930,17.172,2012.5,2010.9,0.8157]
[1742382954074,0.005,2013.0,2011.4,3.0]
[1742382954275,0.005,2013.0,2011.7,5.41564397]
[1742382954571,0.005,2013.0,2011.8,0.8042]
[1742382954921,17.18,2012.9,2011.8,0.8042]
[1742382955150,18.8985,2012.9,2011.8,0.8042]
[1742382955365,3.0,2012.8,2011.0,0.768]
[1742382955565,0.55,2012.5,2011.0,0.768]
[1742382955731,0.63872812,2012.5,2011.0,0.768]
[1742382956123,0.55,2012.3,2011.0,0.768]
[1742382956329,0.08872812,2012.2,2011.0,0.768]
[1742382956553,17.73,2012.1,2011.0,0.768]
[1742382957283,17.18,2012.1,2011.0,0.768]
[1742382957675,0.55,2012.0,2011.0,0.768]
[1742382958364,14.08,2012.1,2011.0,0.768]
[1742382958929,15.23231903,2012.1,2011.0,0.768]
[1742382960338,0.55,2012.0,2011.0,0.768]
[1742382960561,3.55,2012.0,2011.0,0.768]
[1742382960774,8.96803439,2012.0,2010.5,0.7957]
[1742382960929,0.08872812,2011.9,2010.5,0.7957]
[1742382961136,0.55,2011.8,2010.5,0.7957]
[1742382961333,3.0,2011.7,2010.5,0.7957]
[1742382961535,0.63872812,2011.6,2009.9,0.9344398]
[1742382961768,0.55,2011.4,2009.9,1.45464084]
[1742382961944,0.63872812,2011.4,2009.9,1.45464084]
[1742382962144,0.55,2011.2,2009.9,0.9344398]
[1742382962373,0.55,2011.0,2009.9,0.9344398]
[1742382962585,0.55,2010.7,2009.9,0.9344398]
[1742382962938,0.55,2010.7,2009.9,0.1387398]
[1742382963645,0.63872812,2010.7,2009.9,0.1387398]
[1742382963849,0.08872812,2010.7,2009.9,0.1387398]
[1742382965871,0.55,2010.3,2009.9,0.1387398]
[1742382966041,0.08872812,2010.3,2009.9,0.1387398]
[1742382966879,0.55,2010.7,2009.9,0.1387398]
[1742382967079,0.55,2010.5,2009.9,0.1387398]
[1742382967303,19.64222185,2010.9,2009.9,0.1387398]
[1742382967641,0.55,2010.8,2009.9,0.1387398]
[1742382967839,19.64222185,2010.9,2009.9,0.1387398]
[1742382969000,3.0,2010.8,2009.9,0.1387398]
[1742382969298,2.26422219,2010.7,2009.9,0.1387398]
[1742382969506,0.55,2010.6,2009.9,0.1387398]
[1742382970005,3.0,2010.8,2009.9,0.1387398]
[1742382970203,17.183,2010.9,2009.9,0.1387398]
[1742382970672,3.0,2010.8,2009.9,0.1387398]
[1742382970875,0.74888288,2010.8,2009.9,0.1387398]
[1742382971110,0.55,2010.7,2009.9,0.1387398]
[1742382972106,0.55,2010.8,2009.9,0.1387398]
[1742382972327,18.9013,2010.9,2009.9,0.1387398]
[1742382972996,1.89013,2010.8,2009.9,0.1387398]
[1742382973191,17.183,2010.9,2009.9,0.1387398]
[1742382973393,2.47277983,2012.0,2010.0,0.7536]
[1742382973595,17.196,2011.7,2010.0,0.7536]
[1742382974973,3.0,2011.6,2010.0,0.7536]
[1742382975173,17.196,2011.7,2010.0,0.7536]
[1742382975174,17.196,2011.7,2010.0,0.80333091]
[1742382975393,17.196,2011.7,2010.0,0.7536]
[1742382975692,18.9156,2011.7,2010.0,0.7536]
[1742382976086,8.42550991,2011.6,2010.2,0.807]
[1742382976286,0.55,2011.5,2010.2,0.807]
[1742382976624,0.55,2011.3,2010.2,0.807]
[1742382976824,2.46684027,2011.6,2010.3,0.04974084]
[1742382976992,8.18531766,2011.6,2010.2,0.807]
[1742382977323,0.55,2011.5,2010.2,0.807]
[1742382978520,0.55,2011.5,2010.2,0.767]
[1742382978840,1.29888288,2011.5,2010.2,0.767]
[1742382978988,0.55,2011.3,2010.2,0.767]
[1742382979187,3.55,2011.3,2010.2,0.767]
[1742382979701,0.55,2011.3,2010.2,0.767]
[1742382980626,2.71847739,2011.6,2010.2,0.767]